fUSD/lending_fUSD_20251206
["ID","MTS","AMOUNT","RATE_DAILY","PERIOD"]
[396577810,1765056672860,-500.0,0.00016986,2]
[396577811,1765056672871,-2345.42,0.00016986,2]
[396577812,1765056672880,-1095.4,0.00016986,2]
[396577813,1765056672891,-644.09285268,0.00016986,2]
[396577814,1765056672903,-500.0,0.00016986,2]
[396577815,1765056672913,-500.0,0.00016986,2]
[396577816,1765056672924,-500.0,0.00016986,2]
[396577817,1765056672936,-500.0,0.00016986,2]
[396577818,1765056672948,-655.43,0.00016986,2]
[396577819,1765056672958,-500.0,0.00016986,2]
[396577820,1765056672968,-691.52,0.00016986,2]
[396577821,1765056672979,-500.0,0.00016986,2]
[396577822,1765056672989,-500.0,0.00016986,2]
[396577823,1765056672999,-391.64404681,0.00016986,2]
[396577824,1765056673009,-725.49,0.00016986,2]
[396577825,1765056673019,-500.0,0.00016986,2]
[396577826,1765056673029,-500.0,0.00016986,2]
[396577827,1765056673039,-500.0,0.00016986,2]
[396577828,1765056673049,-1959.03,0.00016986,2]
[396577829,1765056673058,-500.0,0.00016986,2]
[396577830,1765056673068,-858.99,0.00016986,2]
[396577831,1765056673078,-1321.11,0.00016986,2]
[396577832,1765056673088,-500.0,0.00016986,2]
[396577833,1765056673098,-500.0,0.00016986,2]
[396577834,1765056673108,-500.0,0.00016986,2]
[396577835,1765056673118,-500.0,0.00016986,2]
[396577836,1765056673128,-693.46,0.00016986,2]
[396577837,1765056673138,-500.0,0.00016986,2]
[396577838,1765056673148,-1238.45,0.00016986,2]
[396577839,1765056673159,-532.55,0.00016986,2]
[396577840,1765056673169,-502.73114491,0.00016986,2]
[396577841,1765056673179,-1892.26,0.00016986,2]
[396577842,1765056673190,-2524.17,0.00016986,2]
[396577843,1765056673200,-2294.66,0.00016986,2]
[396577844,1765056673210,-500.0,0.00016986,2]
[396577845,1765056673220,-4706.18,0.00016986,2]
[396577846,1765056673231,-2474.55,0.00016986,2]
[396577847,1765056673241,-1871.66,0.00016986,2]
[396577848,1765056673253,-1758.07,0.00016986,2]
[396577849,1765056673262,-500.0,0.00016986,2]
[396577850,1765056673274,-500.0,0.00016986,2]
[396577851,1765056673284,-627.83,0.00016986,2]
[396577852,1765056673294,-2396.34,0.00016986,2]
[396577853,1765056673304,-500.0,0.00016986,2]
[396577854,1765056673314,-502.41530525,0.00016986,2]
[396577855,1765056673325,-500.0,0.00016986,2]
[396577856,1765056673335,-606.42,0.00016986,2]
[396577857,1765056673345,-500.0,0.00016986,2]
[396577858,1765056673356,-500.0,0.00016986,2]
[396577859,1765056673366,-500.0,0.00016986,2]
[396577860,1765056673376,-209.80465977,0.00016986,2]
[396577861,1765056673386,-906.76,0.00016986,2]
[396577862,1765056673398,-2190.7,0.00016986,2]
[396577863,1765056673408,-515.97,0.00016986,2]
[396577864,1765056673418,-2286.51,0.00016986,2]
[396577865,1765056673428,-1347.5,0.00016986,2]
[396577866,1765056673438,-500.0,0.00016986,2]
[396577867,1765056673448,-1479.28,0.00016986,2]
[396577868,1765056673458,-710.67,0.00016986,2]
[396577869,1765056673470,-8082.7,0.00016986,2]
[396577870,1765056673480,-500.0,0.00016986,2]
[396577871,1765056673490,-500.0,0.00016986,2]
[396577872,1765056673499,-1609.38,0.00016986,2]
[396577873,1765056673509,-2502.65,0.00016986,2]
[396577874,1765056673519,-500.0,0.00016986,2]
[396577875,1765056673529,-500.0,0.00016986,2]
[396577876,1765056673539,-500.0,0.00016986,2]
[396577877,1765056673549,-500.0,0.00016986,2]
[396577878,1765056673559,-512.34,0.00016986,2]
[396577879,1765056673569,-181.31849654,0.00016986,2]
[396577880,1765056673579,-500.0,0.00016986,2]
[396577881,1765056673589,-2231.84,0.00016986,2]
[396577882,1765056673599,-1340.17,0.00016986,2]
[396577883,1765056673610,-500.0,0.00016986,2]
[396577884,1765056673620,-500.0,0.00016986,2]
[396577885,1765056673630,-500.0,0.00016986,2]
[396577886,1765056673640,-500.0,0.00016986,2]
[396577887,1765056673653,-500.0,0.00016986,2]
[396577888,1765056673666,-1226.59,0.00016986,2]
[396577889,1765056673678,-500.0,0.00016986,2]
[396577890,1765056673688,-500.0,0.00016986,2]
[396577891,1765056673698,-4033.66,0.00016986,2]
[396577892,1765056673709,-500.0,0.00016986,2]
[396577893,1765056673719,-500.0,0.00016986,2]
[396577894,1765056673731,-616.01638256,0.00016986,2]
[396577895,1765056673741,-618.4,0.00016986,2]
[396577896,1765056673753,-500.0,0.00016986,2]
[396577897,1765056673763,-2478.82,0.00016986,2]
[396577898,1765056673774,-500.0,0.00016986,2]
[396577899,1765056673785,-500.0,0.00016986,2]
[396577900,1765056673795,-2918.0,0.00016986,2]
[396577901,1765056673805,-684.81,0.00016986,2]
[396577902,1765056673816,-500.0,0.00016986,2]
[396577903,1765056673826,-2547.38,0.00016986,2]
[396577904,1765056673839,-500.0,0.00016986,2]
[396577905,1765056673849,-500.0,0.00016986,2]
[396577906,1765056673860,-500.0,0.00016986,2]
[396577907,1765056673875,-551.42,0.00016986,2]
[396577908,1765056673884,-500.0,0.00016986,2]
[396577909,1765056673895,-500.0,0.00016986,2]
[396577910,1765056673906,-2533.05,0.00016986,2]
[396577911,1765056673915,-500.0,0.00016986,2]
[396577912,1765056673927,-500.0,0.00016986,2]
[396577913,1765056673937,-500.0,0.00016986,2]
[396577914,1765056673947,-573.44,0.00016986,2]
[396577915,1765056673957,-2389.02,0.00016986,2]
[396577916,1765056673967,-500.0,0.00016986,2]
[396577917,1765056673977,-2450.76,0.00016986,2]
[396577918,1765056674206,-760.56,0.00016986,2]
[396577919,1765056674251,-500.0,0.00016986,2]
[396577920,1765056674262,-500.0,0.00016986,2]
[396577921,1765056674274,-500.0,0.00016986,2]
[396577922,1765056674286,-1950.47,0.00016986,2]
[396577923,1765056674295,-500.0,0.00016986,2]
[396577924,1765056674305,-2307.35,0.00016986,2]
[396577925,1765056674316,-500.0,0.00016986,2]
[396577926,1765056674326,-500.0,0.00016986,2]
[396577927,1765056674336,-500.0,0.00016986,2]
[396577928,1765056674345,-2654.54,0.00016986,2]
[396577929,1765056674355,-1992.78,0.00016986,2]
[396577930,1765056674364,-500.0,0.00016986,2]
[396577931,1765056674373,-602.76,0.00016986,2]
[396577932,1765056674383,-2208.15,0.00016986,2]
[396577933,1765056674392,-589.23,0.00016986,2]
[396577934,1765056674402,-500.0,0.00016986,2]
[396577935,1765056674412,-7324.72,0.00016986,2]
[396577936,1765056674422,-500.0,0.00016986,2]
[396577937,1765056674431,-2827.89,0.00016986,2]
[396577938,1765056674441,-500.0,0.00016986,2]
[396577939,1765056674451,-505.34542907,0.00016986,2]
[396577940,1765056674461,-500.0,0.00016986,2]
[396577941,1765056674471,-542.24,0.00016986,2]
[396577942,1765056674481,-151.0,0.00016986,2]
[396577943,1765056674491,-151.0,0.00016986,2]
[396577944,1765056674501,-2824.54,0.00016986,2]
[396577945,1765056674511,-515.11,0.00016986,2]
[396577946,1765056674521,-2854.68,0.00016986,2]
[396577947,1765056674530,-553.4,0.00016986,2]
[396577948,1765056674539,-500.0,0.00016986,2]
[396577949,1765056674548,-987.7,0.00016986,2]
[396577950,1765056674558,-535.89,0.00016986,2]
[396577951,1765056674567,-2114.1,0.00016986,2]
[396577952,1765056674577,-500.0,0.00016986,2]
[396577953,1765056674586,-500.0,0.00016986,2]
[396577954,1765056674595,-500.0,0.00016986,2]
[396577955,1765056674606,-1000.0,0.00016986,2]
[396577956,1765056674615,-2779.57,0.00016986,2]
[396577957,1765056674626,-1740.33,0.00016986,2]
[396577958,1765056674636,-957.52,0.00016986,2]
[396577959,1765056674646,-535.36,0.00016986,2]
[396577960,1765056674655,-500.0,0.00016986,2]
[396577961,1765056674664,-2145.43,0.00016986,2]
[396577962,1765056674675,-500.0,0.00016986,2]
[396577963,1765056674684,-500.0,0.00016986,2]
[396577964,1765056674694,-500.0,0.00016986,2]
[396577965,1765056674703,-2186.57,0.00016986,2]
[396577966,1765056674713,-9782.58,0.00016986,2]
[396577967,1765056674723,-282.35799692,0.00016986,2]
[396577968,1765056674733,-3567.09,0.00016986,2]
[396577969,1765056674742,-500.0,0.00016986,2]
[396577970,1765056674752,-1315.76,0.00016986,2]
[396577971,1765056674765,-2552.29,0.00016986,2]
[396577972,1765056674774,-500.0,0.00016986,2]
[396577973,1765056674783,-500.0,0.00016986,2]
[396577974,1765056674794,-602.78,0.00016986,2]
[396577975,1765056674804,-500.0,0.00016986,2]
[396577976,1765056674813,-500.0,0.00016986,2]
[396577977,1765056674822,-500.0,0.00016986,2]
[396577978,1765056674832,-2273.48,0.00016986,2]
[396577979,1765056674843,-500.0,0.00016986,2]
[396577980,1765056674852,-2839.47,0.00016986,2]
[396577981,1765056674862,-2703.56,0.00016986,2]
[396577982,1765056674872,-2958.29,0.00016986,2]
[396577983,1765056674882,-500.0,0.00016986,2]
[396577984,1765056674891,-538.71749559,0.00016986,2]
[396577985,1765056674902,-500.0,0.00016986,2]
[396577986,1765056674911,-500.0,0.00016986,2]
[396577987,1765056674920,-887.81,0.00016986,2]
[396577988,1765056674930,-552.98,0.00016986,2]
[396577989,1765056674939,-2323.94,0.00016986,2]
[396577990,1765056674948,-500.0,0.00016986,2]
[396577991,1765056674958,-2557.21,0.00016986,2]
[396577992,1765056674967,-500.0,0.00016986,2]
[396577993,1765056674976,-500.0,0.00016986,2]
[396577994,1765056674986,-500.53,0.00016986,2]
[396577995,1765056674996,-1436.99,0.00016986,2]
[396577996,1765056675006,-500.0,0.00016986,2]
[396577997,1765056675016,-500.0,0.00016986,2]
[396577998,1765056675027,-2809.65,0.00016986,2]
[396577999,1765056675036,-3025.16,0.00016986,2]
[396578000,1765056675046,-622.35,0.00016986,2]
[396578001,1765056675056,-1297.99,0.00016986,2]
[396578002,1765056675066,-500.0,0.00016986,2]
[396578003,1765056675077,-500.0,0.00016986,2]
[396578004,1765056675087,-9093.25,0.00016986,2]
[396578005,1765056675097,-500.0,0.00016986,2]
[396578006,1765056675107,-742.7,0.00016986,2]
[396578007,1765056675118,-2523.43,0.00016986,2]
[396578008,1765056675127,-500.0,0.00016986,2]
[396578009,1765056675137,-789.42,0.00016986,2]
[396578010,1765056675147,-1040.27,0.00016986,2]
[396578011,1765056675156,-1946.27,0.00016986,2]
[396578012,1765056675166,-500.0,0.00016986,2]
[396578013,1765056675175,-500.0,0.00016986,2]
[396578014,1765056675184,-500.0,0.00016986,2]
[396578015,1765056675194,-500.0,0.00016986,2]
[396578016,1765056675204,-500.0,0.00016986,2]
[396578017,1765056675213,-500.0,0.00016986,2]
[396578018,1765056675222,-878.18,0.00016986,2]
[396578019,1765056675232,-500.0,0.00016986,2]
[396578020,1765056675241,-500.0,0.00016986,2]
[396578021,1765056675251,-151.0,0.00016986,2]
[396578022,1765056675261,-500.0,0.00016986,2]
[396578023,1765056675271,-529.76,0.00016986,2]
[396578024,1765056675281,-2686.58,0.00016986,2]
[396578025,1765056675291,-810.69,0.00016986,2]
[396578026,1765056675302,-500.0,0.00016986,2]
[396578027,1765056675312,-500.0,0.00016986,2]
[396578028,1765056675322,-500.0,0.00016986,2]
[396578029,1765056675332,-500.0,0.00016986,2]
[396578030,1765056675342,-666.49,0.00016986,2]
[396578031,1765056675351,-2531.56,0.00016986,2]
[396578032,1765056675361,-500.0,0.00016986,2]
[396578033,1765056675370,-500.0,0.00016986,2]
[396578034,1765056675380,-151.0,0.00016986,2]
[396578035,1765056675390,-3739.09,0.00016986,2]
[396578036,1765056675400,-500.0,0.00016986,2]
[396578037,1765056675410,-500.0,0.00016986,2]
[396578038,1765056675420,-500.0,0.00016986,2]
[396578039,1765056675430,-500.0,0.00016986,2]
[396578040,1765056675440,-500.0,0.00016986,2]
[396578041,1765056675450,-500.0,0.00016986,2]
[396578042,1765056675460,-2471.17,0.00016986,2]
[396578043,1765056675470,-750.84,0.00016986,2]
[396578044,1765056675480,-505.03086043,0.00016986,2]
[396578045,1765056675489,-549.45,0.00016986,2]
[396578046,1765056675499,-300.0,0.00016986,2]
[396578047,1765056675508,-500.0,0.00016986,2]
[396578048,1765056675518,-500.0,0.00016986,2]
[396578049,1765056675527,-744.5,0.00016986,2]
[396578050,1765056675537,-2485.92,0.00016986,2]
[396578051,1765056675546,-1969.09,0.00016986,2]
[396578052,1765056675556,-500.0,0.00016986,2]
[396578053,1765056675565,-500.0,0.00016986,2]
[396578054,1765056675576,-500.0,0.00016986,2]
[396578055,1765056675585,-500.0,0.00016986,2]
[396578056,1765056675594,-500.0,0.00016986,2]
[396578057,1765056675604,-500.0,0.00016986,2]
[396578058,1765056675613,-500.0,0.00016986,2]
[396578059,1765056675623,-2270.17,0.00016986,2]
[396578060,1765056675633,-500.0,0.00016986,2]
[396578061,1765056675642,-515.74,0.00016986,2]
[396578062,1765056675652,-500.0,0.00016986,2]
[396578063,1765056675662,-1954.29,0.00016986,2]
[396578064,1765056675672,-500.0,0.00016986,2]
[396578065,1765056675681,-2188.1,0.00016986,2]
[396578066,1765056675691,-500.0,0.00016986,2]
[396578067,1765056675700,-503.11276695,0.00016986,2]
[396578068,1765056675710,-500.0,0.00016986,2]
[396578069,1765056675719,-605.62,0.00016986,2]
[396578070,1765056675729,-813.38,0.00016986,2]
[396578071,1765056675738,-1270.71,0.00016986,2]
[396578072,1765056675748,-541.19368772,0.00016986,2]
[396578073,1765056675760,-500.0,0.00016986,2]
[396578074,1765056675770,-500.0,0.00016986,2]
[396578075,1765056675779,-500.0,0.00016986,2]
[396578076,1765056675788,-293.71668664,0.00016986,2]
[396578077,1765056675798,-3712.82,0.00016986,2]
[396578078,1765056675808,-553.88,0.00016986,2]
[396578079,1765056675817,-659.11,0.00016986,2]
[396578080,1765056675827,-500.0,0.00016986,2]
[396578081,1765056675838,-500.0,0.00016986,2]
[396578082,1765056675848,-2146.97,0.00016986,2]
[396578083,1765056675858,-500.0,0.00016986,2]
[396578084,1765056675867,-526.77,0.00016986,2]
[396578085,1765056675877,-500.0,0.00016986,2]
[396578086,1765056675886,-2911.1,0.00016986,2]
[396578087,1765056675895,-533.875102,0.00016986,2]
[396578088,1765056675904,-500.0,0.00016986,2]
[396578089,1765056675914,-500.0,0.00016986,2]
[396578090,1765056675923,-533.875102,0.00016986,2]
[396578091,1765056675932,-584.41,0.00016986,2]
[396578092,1765056675941,-1084.14,0.00016986,2]
[396578093,1765056675951,-533.875102,0.00016986,2]
[396578094,1765056675960,-1048.67,0.00016986,2]
[396578095,1765056675970,-1379.62,0.00016986,2]
[396578096,1765056675979,-660.9,0.00016986,2]
[396578097,1765056675992,-2556.45,0.00016986,2]
[396578098,1765056676001,-609.28,0.00016986,2]
[396578099,1765056676011,-533.875102,0.00016986,2]
[396578100,1765056676020,-1748.73,0.00016986,2]
[396578101,1765056676029,-500.0,0.00016986,2]
[396578102,1765056676038,-500.0,0.00016986,2]
[396578103,1765056676047,-2088.97,0.00016986,2]
[396578104,1765056676057,-2312.47,0.00016986,2]
[396578105,1765056676066,-500.0,0.00016986,2]
[396578106,1765056676075,-799.76,0.00016986,2]
[396578107,1765056676084,-500.0,0.00016986,2]
[396578108,1765056676093,-500.0,0.00016986,2]
[396578109,1765056676103,-500.0,0.00016986,2]
[396578110,1765056676112,-539.32728333,0.00016986,2]
[396578111,1765056676121,-537.6845,0.00016986,2]
[396578112,1765056676130,-539.27684315,0.0001699,2]
[396578113,1765056676140,-853.21,0.00016997,2]
[396578114,1765056676149,-5597.9089779,0.00016998,2]
[396578115,1765056676159,-2905.8058416,0.00016998,2]
[396578116,1765056676168,-176502.9905487,0.00016998,2]
[396578117,1765056676178,-3248.2044968,0.00016998,2]
[396578118,1765056676187,-3629.4039189,0.00016998,2]
[396578119,1765056676196,-151.0,0.00016998,2]
[396578120,1765056676206,-151.0,0.00016998,2]
[396578121,1765056676215,-244.835881,0.00016998,2]
[396578122,1765056676225,-151.0,0.00016998,2]
[396578123,1765056676234,-151.0,0.00016998,2]
[396578124,1765056676243,-286.242662,0.00016998,2]
[396578125,1765056676253,-286.242662,0.00016998,2]
[396578126,1765056676262,-837.4860878,0.00016998,2]
[396578127,1765056676271,-286.242662,0.00016998,2]
[396578128,1765056676280,-286.24267,0.00016998,2]
[396578129,1765056676289,-3705.1523618,0.00016998,2]
[396578130,1765056676299,-23927.8452676,0.00016998,2]
[396578131,1765056676308,-1028.16724031,0.00016999,5]
[396578132,1765056676317,-1000.0,0.00016999,2]
[396578133,1765056676328,-853.21,0.00016999,2]
[396578134,1765056676337,-853.21,0.00016999,2]
[396578135,1765056676346,-853.21,0.00016999,2]
[396578136,1765056676355,-853.21,0.00016999,2]
[396578137,1765056676364,-853.21,0.00016999,2]
[396578138,1765056676373,-853.21,0.00016999,2]
[396578139,1765056676382,-853.21,0.00016999,2]
[396578140,1765056676392,-853.21,0.00016999,2]
[396578141,1765056676401,-853.41,0.00016999,2]
[396578142,1765056676410,-2679213.34317194,0.00017,2]
[396578143,1765056676945,-151.0,0.00016712,2]
[396578144,1765056676954,-191.108,0.00017,2]
[396578145,1765056677353,-151.0,0.00016438,2]
[396578146,1765056677362,-500.0,0.00016438,2]
[396578147,1765056677371,-148.77282,0.00016438,2]
[396578148,1765056677418,-351.22718,0.00016438,2]
[396578149,1765056677427,-151.0,0.00016712,2]
[396578150,1765056677436,-151.0,0.00016712,2]
[396578151,1765056677445,-4707.0,0.00016857,2]
[396578152,1765056677454,-151.0,0.00016973,2]
[396578153,1765056677462,-151.0,0.00016986,2]
[396578154,1765056677471,-35494.90738092,0.00017,2]
[396578155,1765056677481,-482.7097,0.00017,2]
[396578156,1765056677507,-457.49703547,0.00017,2]
[396578157,1765056677518,-15480.04705613,0.00017,2]
[396578158,1765056677527,-673.3310658,0.00017,2]
[396578159,1765056677537,-563.8722431,0.00017,2]
[396578160,1765056677865,-669.9199515,0.00015525,2]
[396578161,1765056677874,-10504.15905899,0.00016258,2]
[396578162,1765056677884,-500.0,0.00016438,2]
[396578163,1765056677893,-500.0,0.00016438,2]
[396578164,1765056677903,-11085.09002893,0.00016686,2]
[396578165,1765056677912,-48738.01272691,0.00017,2]
[396578166,1765056677923,-454.625,0.00017,2]
[396578167,1765056677937,-748.87113101,0.00017,2]
[396578168,1765056677959,-1845.17863691,0.00017,2]
[396578169,1765056677970,-988.19869515,0.00017,2]
[396578170,1765056677981,-1189.437384,0.00017,2]
[396578171,1765056677992,-1331.985,0.00017,2]
[396578172,1765056678002,-1137.452036,0.00017,2]
[396578173,1765056678013,-19255.0,0.00017,2]
[396578174,1765056678027,-605.0,0.00017,2]
[396578175,1765056678038,-1116.0,0.00017,2]
[396578190,1765057698054,157.66,7.647e-05,2]
[396578191,1765057698263,157.66,8.097e-05,2]
[396578192,1765057698479,157.66,8.546e-05,2]
[396578193,1765057698770,157.66,8.996e-05,2]
[396578194,1765057699332,157.66,9.446e-05,2]
[396578195,1765057699449,157.66,9.896e-05,2]
[396578196,1765057699651,157.66,0.00010346,2]
[396578197,1765057700070,157.66,0.00010795,2]
[396578198,1765057700279,157.66,0.00011245,2]
[396578199,1765057700484,157.66,0.00011695,2]
[396578200,1765057700699,157.66,0.00012145,2]
[396578201,1765057700888,157.66,0.00012595,2]
[396578202,1765057701071,157.66,0.00013044,2]
[396578209,1765057831962,-157.66,0.00013494,2]
[396578210,1765057831971,-157.66,0.00013944,2]
[396578211,1765057831982,-157.66,0.00014394,2]
[396578212,1765057831993,-152.35662066,0.00014844,2]
[396578213,1765057832004,-5.30337934,0.00014844,2]
[396578214,1765057832014,-193.0,0.00014844,2]
[396578215,1765057832024,-709.09159301,0.000151,2]
[396578216,1765057832045,-2180.125849,0.000151,2]
[396578217,1765057832072,-13.93225923,0.000151,2]
[396578218,1765057832083,-2751.0,0.00015111,2]
[396578219,1765057832092,-300.0,0.00015287,2]
[396578220,1765057832102,-1200.0,0.00015287,2]
[396578221,1765057832112,-35.06774061,0.00015288,2]
[396578222,1765057832171,-114.93225939,0.00015288,2]
[396578223,1765057832180,-150.0,0.00015288,2]
[396578224,1765057832190,-132.9142133,0.00015288,2]
[396578225,1765057832201,-17.0857867,0.00015288,2]
[396578226,1765057832210,-150.0,0.00015288,2]
[396578227,1765057832219,-150.0,0.00015288,2]
[396578228,1765057832228,-150.0,0.00015288,2]
[396578229,1765057832238,-150.0,0.00015288,2]
[396578230,1765057832247,-150.0,0.00015288,2]
[396578231,1765057832256,-150.0,0.00015288,2]
[396578232,1765057832266,-150.0,0.00015288,2]
[396578233,1765057832275,-150.0,0.00015288,2]
[396578234,1765057832284,-150.0,0.00015288,2]
[396578235,1765057832293,-157.66,0.00015294,2]
[396578236,1765057832302,-250.0,0.0001537,2]
[396578237,1765057832312,-1868.35,0.00015456,2]
[396578239,1765057832325,-157.41,0.00015622,2]
[396578241,1765057832334,-5311.3,0.00015718,2]
[396578242,1765057832343,-150.0,0.00015854,2]
[396578243,1765057832352,-150.0,0.00015854,2]
[396578244,1765057832361,-150.0,0.00015854,2]
[396578246,1765057832371,-455.02875877,0.000159,2]
[396578248,1765057832380,-455.02875873,0.000159,2]
[396578250,1765057832389,-455.02875873,0.000159,2]
[396578252,1765057832398,-455.02875873,0.00015952,2]
[396578254,1765057832408,-4539.32,0.00015986,2]
[396578256,1765057832417,-455.02875873,0.00016095,2]
[396578258,1765057832426,-480.22,0.00016164,2]
[396578260,1765057832435,-293.94,0.00016192,2]
[396578262,1765057832444,-300.0,0.00016228,2]
[396578264,1765057832454,-151.0,0.00016228,2]
[396578266,1765057832463,-4112.6133003,0.00016238,2]
[396578268,1765057832471,-156.23982148,0.00016238,2]
[396578270,1765057832480,-2096.81848564,0.00016238,2]
[396578271,1765057832489,-473.15478817,0.00016238,2]
[396578273,1765057832498,-158.41495458,0.00016238,2]
[396578275,1765057832508,-455.02875873,0.00016238,2]
[396578277,1765057832517,-2500.0,0.00016238,2]
[396578279,1765057832526,-4112.61330022,0.00016312,2]
[396578281,1765057832535,-2096.81848563,0.00016312,2]
[396578282,1765057832545,-200.0,0.00016328,2]
[396578283,1765057832554,-198.0,0.00016328,2]
[396578284,1765057832563,-500.0,0.00016328,2]
[396578285,1765057832572,-500.0,0.00016328,2]
[396578286,1765057832581,-500.0,0.00016328,2]
[396578287,1765057832591,-500.0,0.00016328,2]
[396578288,1765057832600,-151.0,0.00016328,2]
[396578289,1765057832609,-168.65881289,0.00016328,2]
[396578290,1765057832619,-500.0,0.00016328,2]
[396578291,1765057832628,-151.0,0.00016328,2]
[396578292,1765057832638,-500.0,0.00016328,2]
[396578293,1765057832646,-151.0,0.00016328,2]
[396578294,1765057832656,-500.0,0.00016328,2]
[396578295,1765057832666,-151.0,0.00016328,2]
[396578296,1765057832676,-151.0,0.00016328,2]
[396578297,1765057832685,-500.0,0.00016328,2]
[396578298,1765057832695,-151.0,0.00016328,2]
[396578299,1765057832704,-151.0,0.00016328,2]
[396578300,1765057832713,-500.0,0.00016328,2]
[396578301,1765057832723,-151.0,0.00016328,2]
[396578302,1765057832733,-151.0,0.00016328,2]
[396578303,1765057832742,-500.0,0.00016328,2]
[396578304,1765057832752,-151.0,0.00016328,2]
[396578305,1765057832762,-151.0,0.00016328,2]
[396578306,1765057832771,-500.0,0.00016328,2]
[396578307,1765057832781,-151.0,0.00016328,2]
[396578308,1765057832791,-151.0,0.00016328,2]
[396578309,1765057832801,-500.0,0.00016328,2]
[396578310,1765057832810,-151.0,0.00016328,2]
[396578311,1765057832820,-151.0,0.00016328,2]
[396578312,1765057832829,-500.0,0.00016328,2]
[396578313,1765057832838,-151.0,0.00016328,2]
[396578314,1765057833081,-183.07325149,0.00016328,2]
[396578315,1765057833111,-151.0,0.00016328,2]
[396578316,1765057833121,-154.8398486,0.00016328,2]
[396578317,1765057833131,-688.49839244,0.00016328,2]
[396578318,1765057833141,-151.0,0.00016335,2]
[396578319,1765057833150,-500.0,0.00016337,2]
[396578320,1765057833160,-500.0,0.00016337,2]
[396578321,1765057833169,-500.0,0.00016337,2]
[396578322,1765057833179,-539.48809717,0.00016337,2]
[396578323,1765057833189,-214.32373643,0.00016337,2]
[396578324,1765057833199,-154.04808293,0.00016337,2]
[396578325,1765057833207,-199.5272675,0.00016337,2]
[396578326,1765057833216,-656.73697516,0.00016338,2]
[396578327,1765057833225,-177.945,0.00016338,2]
[396578328,1765057833234,-3788.253,0.00016338,2]
[396578329,1765057833243,-10333.1527,0.00016338,2]
[396578330,1765057833252,-11949.86365206,0.00016338,2]
[396578331,1765057833263,-369.39188292,0.00016338,2]
[396578332,1765057833336,-160844.45837182,0.00016338,2]
[396578333,1765057833348,-7278.26620104,0.00016338,2]
[396578334,1765057833359,-7185.30202791,0.00016338,2]
[396578339,1765057837984,-189.49928925,0.00015455,2]
[396578340,1765057837994,-8602.15892416,0.00016338,2]
[396578341,1765057838041,-563770.55894009,0.00016338,2]
[396578342,1765057838052,-1000.0,0.00016338,2]
[396578343,1765057838061,-600.0,0.00016338,2]
[396578344,1765057838071,-4112.61330022,0.00016385,2]
[396578345,1765057838080,-2096.81848563,0.00016385,2]
[396578346,1765057838090,-1000.0,0.00016397,3]
[396578347,1765057838100,-480.22,0.000164,2]
[396578348,1765057838110,-150.0,0.0001642,2]
[396578349,1765057838120,-150.0,0.0001642,2]
[396578350,1765057838130,-150.0,0.0001642,2]
[396578351,1765057838140,-179.75894771,0.00016428,2]
[396578352,1765057838150,-151.0,0.00016435,2]
[396578353,1765057838160,-500.0,0.00016438,2]